bitfinex-derivatives/quotes_BTCF0:USTF0_20250710
["timestamp","ask_amount","ask_price","bid_price","bid_amount"]
[1752176517009,0.69727297,113240.0,113230.0,1.6587742]
[1752176519312,0.43170497,113240.0,113230.0,1.6587742]
[1752176519610,0.38420874,113240.0,113230.0,1.6587742]
[1752176519810,0.64913674,113240.0,113230.0,1.6587742]
[1752176520306,0.38356874,113240.0,113230.0,1.6587742]
[1752176520506,0.36080001,113250.0,113240.0,0.1765105]
[1752176520711,0.36144,113250.0,113240.0,0.71658102]
[1752176520912,0.00064,113250.0,113240.0,0.71658102]
[1752176521113,1.234608,113260.0,113250.0,0.176495]
[1752176521315,0.8028505,113260.0,113250.0,1.658503]
[1752176521816,0.583367,113280.0,113270.0,0.1764638]
[1752176522008,1.1404477,113280.0,113270.0,0.45907021]
[1752176522214,1.5102185,113280.0,113270.0,0.45707021]
[1752176522515,1.7757865,113280.0,113270.0,0.18850221]
[1752176522816,1.4661058,113280.0,113270.0,0.18850221]
[1752176523014,0.628368,113280.0,113270.0,0.45407021]
[1752176523209,0.628368,113280.0,113270.0,0.45412021]
[1752176523409,0.628368,113280.0,113270.0,0.18855221]
[1752176523615,0.3628,113280.0,113270.0,1.67044021]
[1752176523914,0.36344,113280.0,113270.0,1.66744021]
[1752176524115,0.03077688,113280.0,113270.0,2.35956821]
[1752176524316,1e-07,113290.0,113280.0,0.1764483]
[1752176524623,0.267568,113320.0,113310.0,0.1764016]
[1752176524913,0.002,113320.0,113310.0,2.1141616]
[1752176525720,0.1833859,113320.0,113310.0,2.1141616]
[1752176525921,0.1833859,113320.0,113310.0,2.18653354]
[1752176526317,0.007,113320.0,113310.0,2.18653354]
[1752176526622,0.1833859,113320.0,113310.0,2.18653354]
[1752176527021,0.1843859,113320.0,113310.0,2.18653354]
[1752176527222,0.44931135,113320.0,113310.0,2.18653354]
[1752176527722,0.26792545,113320.0,113310.0,2.18653354]
[1752176527920,0.002,113320.0,113310.0,2.18753354]
[1752176528119,0.002,113320.0,113310.0,2.45245899]
[1752176528423,0.1763559,113340.0,113330.0,0.2645341]
[1752176528623,1.17341945,113350.0,113340.0,0.1763548]
[1752176528821,0.1769916,113350.0,113340.0,0.1763548]
[1752176529116,0.2158192,113350.0,113340.0,0.3052636]
[1752176529516,0.48074465,113350.0,113340.0,0.3052636]
[1752176529725,0.04012,113350.0,113340.0,0.3052636]
[1752176530027,0.2158192,113350.0,113340.0,0.3052636]
[1752176530217,0.48074465,113350.0,113340.0,0.3052636]
[1752176530414,0.48138465,113350.0,113340.0,0.3052636]
[1752176530620,0.48438465,113350.0,113340.0,0.3052636]
[1752176531126,0.51438465,113350.0,113340.0,0.3052636]
[1752176532424,0.53630648,113350.0,113340.0,0.2611774]
[1752176532919,0.53630648,113350.0,113340.0,0.2601774]
[1752176533122,0.56640648,113350.0,113340.0,0.2601774]
[1752176533724,0.56640648,113350.0,113340.0,0.2611774]
[1752176533926,0.39006728,113350.0,113340.0,0.6219774]
[1752176534225,0.56640668,113350.0,113340.0,0.6219774]
[1752176534427,0.12514183,113350.0,113340.0,0.6219774]
[1752176534626,0.56576668,113350.0,113340.0,0.6219774]
[1752176534921,0.30084123,113350.0,113340.0,0.6219774]
[1752176535127,0.56576668,113350.0,113340.0,0.6219774]
[1752176535533,0.12450183,113350.0,113340.0,0.88690285]
[1752176535716,0.12450183,113350.0,113340.0,0.92010285]
[1752176535918,0.02192183,113350.0,113340.0,0.92010285]
[1752176536124,0.02192183,113350.0,113340.0,0.95310285]
[1752176536424,0.23888123,113350.0,113340.0,0.6551774]
[1752176536726,0.23888123,113350.0,113340.0,0.6220274]
[1752176536926,0.30258123,113350.0,113340.0,0.6220274]
[1752176538328,0.56750668,113350.0,113340.0,0.6220274]
[1752176538626,0.56814668,113350.0,113340.0,0.6220274]
[1752176539423,0.56814668,113350.0,113340.0,0.6210274]
[1752176540131,0.56814668,113350.0,113340.0,0.553605]
[1752176540331,0.56814668,113350.0,113340.0,0.537205]
[1752176541031,0.56814668,113350.0,113340.0,0.577675]
[1752176541933,1.17546668,113350.0,113340.0,0.216875]
[1752176543731,0.56814668,113350.0,113340.0,0.216875]
[1752176543932,1.17546668,113350.0,113340.0,0.216875]
[1752176544433,1.22239244,113350.0,113340.0,0.216875]
[1752176545033,1.22239244,113350.0,113340.0,0.176405]
[1752176545233,0.95746699,113350.0,113340.0,0.176405]
[1752176545432,1.22239244,113350.0,113340.0,0.176405]
[1752176546830,0.61507244,113350.0,113340.0,0.176405]
[1752176547034,1.22227244,113350.0,113340.0,0.176405]
[1752176547334,1.17534668,113350.0,113340.0,0.176405]
[1752176548024,0.56814668,113350.0,113340.0,5e-05]
[1752176548226,1.17534668,113350.0,113340.0,0.176405]
[1752176548634,0.56814668,113350.0,113340.0,0.176405]
[1752176548832,1.17534668,113350.0,113340.0,0.216875]
[1752176549033,0.12688183,113350.0,113340.0,0.216875]
[1752176549329,0.79659856,113350.0,113340.0,0.84260045]
[1752176549538,0.97293796,113350.0,113340.0,0.84260045]
[1752176550134,0.90974123,113350.0,113340.0,0.84260045]
[1752176550841,0.90974123,113350.0,113340.0,0.577675]
[1752176551038,0.12624183,113350.0,113340.0,0.577675]
[1752176551239,0.97293806,113350.0,113340.0,0.84260045]
[1752176552143,0.97293806,113350.0,113340.0,0.577675]
[1752176552449,0.90974133,113350.0,113340.0,0.578675]
[1752176552943,0.91038133,113350.0,113340.0,0.578675]
[1752176553243,0.98937725,113350.0,113340.0,0.578675]
[1752176553544,1.05257303,113350.0,113340.0,0.579675]
[1752176553737,0.97357711,113350.0,113340.0,0.579675]
[1752176553938,0.97357711,113350.0,113340.0,0.577675]
[1752176554345,0.91034133,113350.0,113340.0,0.577675]
[1752176554946,0.97359177,113350.0,113340.0,0.577675]
[1752176555748,1.23851722,113350.0,113340.0,0.577675]
[1752176555942,0.97359177,113350.0,113340.0,0.577675]
[1752176558246,0.73400183,113350.0,113340.0,0.577675]
[1752176558546,0.91034113,113350.0,113340.0,0.577675]
[1752176558848,0.67026183,113350.0,113340.0,0.84260045]
[1752176559043,0.06318183,113350.0,113340.0,0.85655861]
[1752176559240,0.14153775,113350.0,113340.0,0.85655861]
[1752176559840,0.20488617,113350.0,113340.0,0.85655861]
[1752176560041,0.06254183,113350.0,113340.0,0.85755861]
[1752176560243,0.12589002,113350.0,113340.0,0.85855861]
[1752176560441,0.08527002,113350.0,113340.0,2.07271861]
[1752176560648,0.08527082,113350.0,113340.0,2.07271861]
[1752176561550,0.08527082,113350.0,113340.0,2.08162461]
[1752176569346,0.02192183,113350.0,113340.0,2.08162461]
[1752176569861,0.06940029,113350.0,113340.0,2.08162461]
[1752176572759,0.06940029,113350.0,113340.0,2.34655006]
[1752176574359,0.02192183,113350.0,113340.0,2.34655006]
[1752176576168,0.01910803,113350.0,113340.0,2.44655006]
[1752176576363,0.04947846,113360.0,113350.0,0.1763391]
[1752176576568,0.04947846,113360.0,113350.0,0.90650455]
[1752176577170,0.002,113360.0,113350.0,1.18294454]
[1752176577560,0.002,113360.0,113350.0,1.08294454]
[1752176577868,0.003,113360.0,113350.0,0.90650455]
[1752176578954,0.003,113360.0,113350.0,0.90750455]
[1752176579161,0.002,113360.0,113350.0,0.90750455]
[1752176579357,0.002,113360.0,113350.0,0.90850455]
[1752176586866,0.002,113360.0,113350.0,0.90855455]
[1752176587968,0.002,113360.0,113350.0,0.6436291]
[1752176588169,0.002,113360.0,113350.0,0.90855455]
[1752176588664,0.02322425,113360.0,113350.0,0.90855455]
[1752176591071,0.05472425,113360.0,113350.0,0.90855455]
[1752176591773,0.05472425,113360.0,113350.0,0.6436291]
[1752176591967,0.05472425,113360.0,113350.0,0.90855455]
[1752176599177,0.04472425,113360.0,113350.0,0.90855455]
[1752176601478,0.07552425,113360.0,113350.0,0.87585455]
[1752176606278,0.0623,113360.0,113350.0,0.87585455]
[1752176606780,0.04226,113370.0,113360.0,0.1763236]
[1752176606977,0.04226,113370.0,113360.0,2.07148085]
[1752176607880,0.01779,113370.0,113360.0,2.07248085]
[1752176609183,0.04195,113370.0,113360.0,2.07248085]
[1752176609892,0.10575,113370.0,113360.0,2.07248085]
[1752176611286,0.12703673,113370.0,113360.0,2.07248085]
[1752176613687,0.30334483,113370.0,113360.0,2.07248085]
[1752176613883,0.12703673,113370.0,113360.0,2.07248085]
[1752176616083,0.30334473,113370.0,113360.0,1.8075554]
[1752176616483,0.12703673,113370.0,113360.0,1.8075554]
[1752176616689,0.12703673,113370.0,113360.0,2.07248085]
[1752176618388,0.08708673,113370.0,113360.0,2.07248085]
[1752176618590,0.08708673,113370.0,113360.0,2.10388085]
[1752176620986,0.08708673,113370.0,113360.0,2.10488085]
[1752176621194,0.11207673,113370.0,113360.0,2.10488085]
[1752176623896,0.11207673,113370.0,113360.0,1.8399554]
[1752176624098,0.11207673,113370.0,113360.0,2.10588085]
[1752176628196,0.11207673,113370.0,113360.0,2.46668085]
[1752176628801,0.11207673,113370.0,113360.0,2.73103776]
[1752176630998,0.12860673,113370.0,113360.0,2.73103776]
[1752176635198,0.17608519,113370.0,113360.0,2.73103776]
[1752176635592,0.17608519,113370.0,113360.0,2.76413776]
[1752176635992,0.12860673,113370.0,113360.0,2.76413776]
[1752176638198,0.12860673,113370.0,113360.0,2.2348554]
[1752176638405,0.12860673,113370.0,113360.0,2.76413776]
[1752176639099,0.09560673,113370.0,113360.0,2.76413776]
[1752176639599,0.07061673,113370.0,113360.0,2.76413776]
[1752176644305,0.07061673,113370.0,113360.0,2.2348554]
[1752176644501,0.07061673,113370.0,113360.0,2.76413776]
[1752176644803,0.02328673,113370.0,113360.0,2.76413776]
[1752176656105,0.07999673,113370.0,113360.0,2.76413776]
[1752176657305,0.07999673,113370.0,113360.0,2.76313776]
[1752176658209,0.07999673,113370.0,113360.0,2.76113776]
[1752176658411,0.53682551,113370.0,113360.0,2.1661154]
[1752176658608,0.56922551,113370.0,113360.0,2.1661154]
[1752176659105,0.56922551,113370.0,113360.0,2.43075658]
[1752176659505,0.56922551,113370.0,113360.0,2.1661154]
[1752176659700,0.56986551,113370.0,113360.0,2.1661154]
[1752176660412,0.56986551,113370.0,113360.0,2.43075658]
[1752176660615,0.56922551,113370.0,113360.0,2.43075658]
[1752176661815,0.56922551,113370.0,113360.0,2.1661154]
[1752176662015,0.56922551,113370.0,113360.0,2.43075658]
[1752176667316,0.56922551,113370.0,113360.0,1.21903658]
[1752176667521,0.56922551,113370.0,113360.0,1.5601554]
[1752176667921,0.56922551,113370.0,113360.0,1.82479658]
[1752176669018,0.39291791,113370.0,113360.0,1.82479658]
[1752176669521,0.39291791,113370.0,113360.0,1.85799658]
[1752176670125,0.56922571,113370.0,113360.0,1.25223658]
[1752176670329,0.56986571,113370.0,113360.0,1.85795658]
[1752176671432,0.56986571,113370.0,113360.0,1.5767736]
[1752176671630,0.56986571,113370.0,113360.0,1.80821478]
[1752176671830,0.56986571,113370.0,113350.0,0.40096]
[1752176671831,0.03969,113360.0,113350.0,0.40096]
[1752176672030,0.03969,113360.0,113350.0,0.36085]
[1752176672031,1.52482027,113360.0,113350.0,0.36085]
[1752176672232,1.92570203,113360.0,113350.0,0.36085]
[1752176672530,1.92568797,113360.0,113350.0,0.36085]
[1752176672833,1.39661872,113360.0,113350.0,0.36085]
[1752176673932,1.39661872,113360.0,113350.0,0.36385]
[1752176674831,1.39661872,113360.0,113350.0,0.00305]
[1752176674832,1.75741872,113360.0,113350.0,0.00305]
[1752176675029,1.75728013,113360.0,113350.0,0.00305]
[1752176678734,1.58084013,113360.0,113350.0,0.00305]
[1752176679034,1.75728013,113360.0,113350.0,0.00305]
[1752176679932,1.70981573,113360.0,113350.0,0.00305]
[1752176680335,1.70981573,113360.0,113350.0,0.00205]
[1752176680524,1.70981573,113360.0,113350.0,5e-05]
[1752176680725,1.53337573,113360.0,113350.0,5e-05]
[1752176682139,1.58069703,113360.0,113350.0,5e-05]
[1752176683933,0.21528,113330.0,113320.0,0.04066]
[1752176684124,1.37181672,113330.0,113320.0,5e-05]
[1752176684325,1.16990243,113330.0,113320.0,0.1764355]
[1752176684532,1.16990243,113330.0,113320.0,0.2170455]
[1752176685236,1.24207598,113330.0,113320.0,0.2180455]
[1752176686035,1.24207598,113330.0,113320.0,0.2200455]
[1752176686636,1.24211598,113330.0,113320.0,0.2200455]
[1752176687432,1.24211598,113330.0,113320.0,0.1952655]
[1752176687936,1.25078761,113330.0,113320.0,0.1952655]
[1752176688340,0.64506761,113330.0,113320.0,0.1952655]
[1752176688648,1.25074761,113330.0,113320.0,0.1952655]
[1752176688837,1.25074761,113330.0,113320.0,0.2200455]
[1752176689141,1.25070761,113330.0,113320.0,0.2200455]
[1752176695342,0.64506761,113330.0,113320.0,0.5808455]
[1752176695546,0.30924169,113330.0,113320.0,0.84569979]
[1752176695741,0.02114814,113330.0,113320.0,0.92583975]
[1752176695936,1.17392819,113350.0,113340.0,0.1921844]
[1752176696136,1.19901002,113350.0,113340.0,0.9385644]
[1752176696338,1.15168872,113350.0,113340.0,1.0022644]
[1752176696646,1.15168872,113350.0,113340.0,0.6414644]
[1752176696846,1.16070863,113350.0,113340.0,0.6414644]
[1752176697040,1.16170863,113350.0,113340.0,0.6414644]
[1752176697645,0.29321434,113350.0,113340.0,0.6414644]
[1752176697841,1.16306863,113350.0,113340.0,0.6414644]
[1752176698849,1.23499927,113350.0,113340.0,0.6414644]
[1752176699053,0.97014498,113350.0,113340.0,0.6414644]
[1752176699448,1.23399927,113350.0,113340.0,0.6414644]
[1752176699647,1.23263927,113350.0,113340.0,0.6414644]
[1752176700246,1.23263927,113350.0,113340.0,0.6414643]
[1752176700551,1.23263927,113350.0,113340.0,0.6087643]
[1752176700750,1.29763927,113350.0,113340.0,0.6087643]
[1752176700953,1.34496057,113350.0,113340.0,0.6087643]
[1752176705155,1.29763927,113350.0,113340.0,0.6087643]
[1752176707454,1.03278498,113350.0,113340.0,0.6087643]
[1752176707651,1.29763927,113350.0,113340.0,0.6087643]
[1752176708258,1.3450139,113350.0,113340.0,0.6087643]
[1752176708456,1.3450139,113350.0,113340.0,0.6393643]
[1752176708457,1.2800139,113350.0,113340.0,0.6393643]
[1752176708656,1.23263927,113350.0,113340.0,0.6393643]
[1752176710255,1.28001374,113350.0,113340.0,0.6393643]
[1752176710856,1.23263927,113350.0,113340.0,0.6393643]
[1752176712058,0.96778498,113350.0,113340.0,0.6393643]
[1752176712248,1.31291622,113350.0,113340.0,0.6393643]
[1752176712448,1.31291629,113350.0,113340.0,0.6087643]
[1752176712657,1.34361629,113350.0,113340.0,0.6087643]
[1752176712855,1.29623927,113350.0,113340.0,0.6087643]
[1752176713057,1.3436163,113350.0,113340.0,0.6087643]
[1752176722467,1.3436163,113350.0,113340.0,0.37663]
[1752176722769,0.2155698,113330.0,113320.0,0.59372536]
[1752176722975,1.10691312,113330.0,113320.0,0.59372536]
[1752176723168,1.16981312,113330.0,113320.0,0.59372536]
[1752176724067,1.16981312,113330.0,113320.0,0.40145996]
[1752176724378,1.21719015,113330.0,113320.0,0.40345996]
[1752176724675,1.21719015,113330.0,113320.0,0.38028996]
[1752176724869,1.21719015,113330.0,113320.0,0.55667536]
[1752176725071,1.16981312,113330.0,113320.0,0.55667536]
[1752176725270,1.16981312,113330.0,113320.0,0.01748996]
[1752176725471,1.17045312,113330.0,113320.0,0.01948996]
[1752176726780,1.17045312,113330.0,113320.0,0.19587496]
[1752176727684,1.17045312,113330.0,113320.0,0.01948996]
[1752176728279,1.21784664,113330.0,113320.0,0.01948996]
[1752176728484,1.17045312,113330.0,113320.0,0.01948996]
[1752176729082,1.79610741,113330.0,113320.0,0.00305]
[1752176729685,1.53125312,113330.0,113320.0,0.00305]
[1752176730571,0.92597312,113330.0,113320.0,0.00305]
[1752176730774,1.53121312,113330.0,113320.0,0.00305]
[1752176735182,1.57854196,113330.0,113320.0,0.00305]
[1752176735586,1.57858196,113330.0,113320.0,0.00305]
[1752176737885,0.97330196,113330.0,113320.0,0.00305]
[1752176738189,1.15484196,113330.0,113320.0,0.2194848]
[1752176738388,1.15484196,113330.0,113320.0,0.076]
[1752176738581,1.18524196,113330.0,113320.0,0.2523848]
[1752176740790,1.13791312,113330.0,113320.0,0.2523848]
[1752176741989,1.13791312,113330.0,113320.0,0.2832848]
[1752176742591,1.13791312,113330.0,113320.0,0.1069]
[1752176742892,1.13791312,113330.0,113320.0,0.076]
[1752176743091,1.17081312,113330.0,113320.0,0.076]
[1752176744095,1.21814196,113330.0,113320.0,0.076]
[1752176745496,1.17081312,113330.0,113320.0,0.076]
[1752176747001,0.56557312,113330.0,113320.0,0.076]
[1752176747197,1.17073312,113330.0,113320.0,0.076]
[1752176747798,1.53153312,113330.0,113320.0,0.076]
[1752176748198,1.53153312,113330.0,113320.0,0.06012]
[1752176748896,1.53149312,113330.0,113320.0,0.06012]
[1752176750298,1.53149312,113330.0,113320.0,0.2365048]
[1752176750499,1.17069312,113330.0,113320.0,0.2530848]
[1752176753101,1.17069312,113330.0,113320.0,0.0767]
[1752176753899,0.95316767,113330.0,113320.0,0.0767]
[1752176754100,1.21802196,113330.0,113320.0,0.0767]
[1752176755198,1.21802196,113330.0,113320.0,0.06012]
[1752176757510,0.61290196,113330.0,113320.0,0.06012]
[1752176757710,1.21794196,113330.0,113320.0,0.06012]
[1752176758717,1.57874196,113330.0,113320.0,0.06012]
[1752176759508,1.59476211,113330.0,113320.0,0.06012]
[1752176761509,1.59476211,113330.0,113320.0,0.00305]
[1752176761716,1.79626741,113330.0,113320.0,0.00305]
[1752176762011,0.74708338,113320.0,113310.0,0.00176499]
[1752176762200,1.19199241,113320.0,113310.0,0.00176499]
[1752176762403,0.1764004,113310.0,113300.0,5e-05]
[1752176762604,0.1764315,113290.0,113280.0,0.43278546]
[1752176762808,1.37333911,113290.0,113280.0,0.43278546]
[1752176763006,1.55471712,113290.0,113280.0,0.07198546]
[1752176763211,1.50791564,113290.0,113280.0,0.00176546]
[1752176763511,1.55535712,113290.0,113280.0,0.00176546]
[1752176763903,1.56439457,113290.0,113280.0,0.00176546]
[1752176764719,1.51695309,113290.0,113280.0,0.00176546]
[1752176765012,1.51695309,113290.0,113280.0,0.02600546]
[1752176766011,1.2520988,113290.0,113280.0,0.02600546]
[1752176766212,1.2520988,113290.0,113280.0,0.02900546]
[1752176766904,1.2520988,113290.0,113280.0,0.02700546]
[1752176768702,1.2520988,113290.0,113280.0,0.20345256]
[1752176769014,1.2520988,113290.0,113280.0,0.22003256]
[1752176769210,0.4706673,113290.0,113280.0,0.22003256]
[1752176769410,0.81947053,113290.0,113280.0,0.61343256]
[1752176769715,1.08432482,113290.0,113280.0,0.64373256]
[1752176770612,1.20460896,113290.0,113270.0,0.36261561]
[1752176770818,0.3041985,113270.0,113260.0,0.02468]
[1752176771010,0.2159782,113260.0,113250.0,0.2463638]
[1752176771210,0.50204152,113260.0,113250.0,0.2463638]
[1752176771410,1.10772152,113260.0,113250.0,0.2766638]
[1752176772221,1.10772152,113260.0,113250.0,0.2826638]
[1752176773518,1.10772152,113260.0,113250.0,0.2866638]
[1752176774717,0.50268152,113260.0,113250.0,0.2866638]
[1752176775020,1.10776152,113260.0,113250.0,0.2866638]
[1752176776117,1.17715997,113260.0,113250.0,0.2866638]
[1752176777020,0.57207997,113260.0,113250.0,0.2866638]
[1752176777216,1.17719997,113260.0,113250.0,0.2866638]
[1752176777411,1.20859997,113260.0,113250.0,0.07987]
[1752176777616,1.86605426,113260.0,113250.0,0.07987]
[1752176777919,1.86605426,113260.0,113250.0,0.04987]
[1752176778114,1.86605426,113260.0,113250.0,0.03473]
[1752176778420,1.60119997,113260.0,113250.0,0.03473]
[1752176778917,1.60119997,113260.0,113250.0,0.2223638]
[1752176779114,0.1765094,113240.0,113230.0,0.00181624]
[1752176779315,1.73292223,113240.0,113230.0,0.00181624]
[1752176779519,1.46870794,113240.0,113230.0,0.00181624]
[1752176779714,1.53190794,113240.0,113230.0,0.00181624]
[1752176780919,1.58034942,113240.0,113230.0,0.00181624]
[1752176781317,1.57934942,113240.0,113230.0,0.00181624]
[1752176781518,1.58334942,113240.0,113230.0,0.00181624]
[1752176782018,1.53590794,113240.0,113230.0,0.00681624]
[1752176783412,1.53766794,113240.0,113230.0,0.00681624]
[1752176783721,0.93078794,113240.0,113230.0,0.00681624]
[1752176783918,1.53762794,113240.0,113230.0,0.00681624]
[1752176785215,0.2160244,113230.0,113220.0,5e-05]
[1752176785422,1.19341723,113230.0,113220.0,5e-05]
[1752176785621,1.19405723,113230.0,113220.0,5e-05]
[1752176785825,1.80081723,113230.0,113220.0,5e-05]
[1752176786214,1.53592294,113230.0,113220.0,5e-05]
[1752176786820,1.53692294,113230.0,113220.0,5e-05]
[1752176787416,1.53592294,113230.0,113220.0,5e-05]
[1752176787624,1.80277723,113230.0,113220.0,5e-05]
[1752176788223,1.80277723,113230.0,113210.0,5e-05]
[1752176788224,0.19308,113220.0,113210.0,5e-05]
[1752176788419,0.92527854,113220.0,113210.0,5e-05]
[1752176788620,1.19077283,113220.0,113210.0,5e-05]
[1752176789828,1.19177283,113220.0,113210.0,5e-05]
[1752176790229,1.20056874,113220.0,113210.0,5e-05]
[1752176791329,1.20056874,113220.0,113210.0,0.2164256]
[1752176791629,1.48013445,113220.0,113210.0,0.2164256]
[1752176791826,1.48013445,113220.0,113210.0,0.2821256]
[1752176792332,1.47133854,113220.0,113210.0,0.2821256]
[1752176792518,1.47133854,113220.0,113210.0,0.2831256]
[1752176793028,0.86461854,113220.0,113210.0,0.2831256]
[1752176793228,1.47137854,113220.0,113210.0,0.2831256]
[1752176794119,0.86461854,113220.0,113210.0,0.2831256]
[1752176794325,1.47125854,113220.0,113210.0,0.2831256]
[1752176795030,1.47997226,113220.0,113210.0,0.2831256]
[1752176795532,1.47109854,113220.0,113210.0,0.2831256]
[1752176795723,1.11029854,113220.0,113210.0,0.2831256]
[1752176796123,0.93375854,113220.0,113210.0,0.2831256]
[1752176796322,1.11029854,113220.0,113210.0,0.2831256]
[1752176798431,1.08733854,113220.0,113210.0,0.2831256]
[1752176798828,0.48085854,113220.0,113210.0,0.2831256]
[1752176799030,1.08725854,113220.0,113210.0,0.2831256]
[1752176799732,1.84057431,113220.0,113210.0,0.00105]
[1752176800331,1.84066832,113220.0,113210.0,0.00105]
[1752176800630,1.23426832,113220.0,113210.0,0.00105]
[1752176800831,1.79346684,113220.0,113210.0,0.00105]
[1752176801220,1.18682684,113220.0,113210.0,0.00105]
[1752176801423,1.57568888,113220.0,113210.0,0.2179953]
[1752176801630,1.84054317,113220.0,113210.0,0.2179953]
[1752176802134,1.57568888,113220.0,113210.0,0.2506953]
[1752176802338,1.15252888,113220.0,113210.0,0.2824953]
[1752176802731,1.41738317,113220.0,113210.0,0.2824953]
[1752176802932,0.69585057,113220.0,113210.0,0.2824953]
[1752176803134,1.30245057,113220.0,113210.0,0.2824953]
[1752176803431,1.66325057,113220.0,113210.0,0.2824953]
[1752176805133,1.61609394,113220.0,113210.0,0.2824953]
[1752176805930,1.66332143,113220.0,113210.0,0.2506952]
[1752176806128,1.67679394,113220.0,113210.0,0.2506952]
[1752176807230,1.67679394,113220.0,113190.0,0.36261686]
[1752176807231,2.01313393,113220.0,113190.0,0.00181686]
[1752176807534,1.41420439,113200.0,113190.0,0.02612686]
[1752176807836,1.70124791,113200.0,113190.0,0.02612686]
[1752176808038,1.71666618,113200.0,113190.0,0.02612686]
[1752176808840,1.71666618,113200.0,113190.0,0.02712686]
[1752176809036,1.10670618,113200.0,113190.0,0.20371316]
[1752176809337,1.71666618,113200.0,113190.0,0.02712686]
[1752176811537,2.13144216,113200.0,113190.0,0.02712686]
[1752176812836,2.19479115,113200.0,113190.0,0.02712686]
[1752176813039,2.13144216,113200.0,113190.0,0.02712686]
[1752176813232,2.21043808,113200.0,113190.0,0.00281686]
[1752176814639,1.7956621,113200.0,113190.0,0.00281686]
[1752176814839,1.7956621,113200.0,113190.0,0.02712686]
[1752176815336,0.2161964,113190.0,113180.0,0.3620477]
[1752176815536,1.10790855,113190.0,113180.0,0.3620477]
[1752176816441,1.10790855,113190.0,113180.0,0.3640477]
[1752176816937,1.10790855,113190.0,113180.0,0.3660477]
[1752176817340,1.10790855,113190.0,113180.0,0.3903577]
[1752176817533,1.13850855,113190.0,113180.0,0.3903577]
[1752176818132,1.13914855,113190.0,113180.0,0.3903577]
[1752176818336,1.07609064,113190.0,113180.0,0.3020569]
[1752176818536,1.08507866,113190.0,113180.0,0.3020569]
[1752176821746,0.67030268,113190.0,113180.0,0.3020569]
[1752176822044,0.52365184,113190.0,113180.0,0.6628569]
[1752176822242,1.28452814,113190.0,113180.0,0.6951569]
[1752176822438,0.08456586,113190.0,113180.0,0.8718609]
[1752176822647,0.02137826,113190.0,113180.0,0.8718609]
[1752176822940,0.52603229,113200.0,113190.0,0.2169763]
[1752176823143,1.13543254,113200.0,113190.0,0.2794763]
[1752176823449,0.95886204,113200.0,113190.0,0.2794763]
[1752176823638,1.13543254,113200.0,113190.0,0.2794763]
[1752176824643,1.15974254,113200.0,113190.0,0.2794763]
[1752176825145,1.11249148,113200.0,113190.0,0.2794763]
[1752176826243,0.30285098,113200.0,113190.0,0.2794763]
[1752176826439,0.2132906,113200.0,113190.0,0.6402763]
[1752176827040,0.47878108,113200.0,113190.0,0.6402763]
[1752176830351,0.2132906,113200.0,113190.0,0.6402763]
[1752176831252,0.0367205,113200.0,113190.0,0.6402763]
[1752176831554,0.30221098,113200.0,113190.0,0.6402763]
[1752176831748,0.0367205,113200.0,113190.0,0.6402763]
[1752176833149,0.0367205,113200.0,113190.0,0.3608]
[1752176833356,0.216486,113190.0,113180.0,0.38654232]
[1752176833653,0.53389698,113190.0,113180.0,0.38654232]
[1752176833855,0.53389698,113190.0,113180.0,0.56324632]
[1752176834049,0.53453698,113190.0,113180.0,0.56324632]
[1752176834350,0.53453698,113190.0,113180.0,1.17236632]
[1752176834855,0.53453698,113190.0,113180.0,1.17436632]
[1752176835154,0.53453698,113190.0,113180.0,1.17428632]
[1752176835354,0.53453698,113190.0,113180.0,0.38854232]
[1752176835562,0.2142365,113190.0,113180.0,0.38854232]
[1752176835853,0.2135965,113190.0,113180.0,0.42164232]
[1752176836256,0.2135965,113190.0,113180.0,0.42364232]
[1752176836457,0.0214205,113190.0,113180.0,1.0499328]
[1752176836954,0.01283771,113190.0,113180.0,1.2266368]
[1752176837559,1.56850638,113210.0,113200.0,0.1765701]
[1752176837759,1.60054638,113210.0,113200.0,0.2149801]
[1752176837955,1.60054638,113210.0,113200.0,0.2474801]
[1752176838857,1.60154638,113210.0,113200.0,0.2474801]
[1752176839252,1.60254638,113210.0,113200.0,0.2474801]
[1752176841360,1.55840408,113210.0,113200.0,0.2474801]
[1752176841560,1.51426178,113210.0,113200.0,0.2790801]
[1752176842159,1.52949178,113210.0,113200.0,0.2790801]
[1752176843961,1.2955613,113210.0,113200.0,0.2790801]
[1752176844360,1.2955613,113210.0,113200.0,0.2474801]
[1752176846264,1.2952013,113210.0,113200.0,0.2474801]
[1752176846563,1.56069178,113210.0,113200.0,0.2474801]
[1752176847261,0.08123,113210.0,113200.0,0.51297058]
[1752176847463,0.002,113210.0,113200.0,0.90687058]
[1752176848562,0.002,113210.0,113200.0,0.6413801]
[1752176849262,0.02330586,113210.0,113200.0,0.6413801]
[1752176850373,0.02330586,113210.0,113200.0,0.90687058]
[1752176855476,0.02330586,113210.0,113200.0,0.6413801]
[1752176857276,0.02330586,113210.0,113200.0,0.90687058]
[1752176857470,0.02330586,113210.0,113200.0,0.6413801]
[1752176857675,0.02330586,113210.0,113200.0,0.90687058]
[1752176857973,0.02330586,113210.0,113200.0,0.6413801]
[1752176858879,0.02330586,113210.0,113200.0,0.6414301]
[1752176859379,0.50524844,113210.0,113200.0,0.5758301]
[1752176859674,0.93194844,113210.0,113200.0,0.23187226]
[1752176859881,0.93258844,113210.0,113200.0,0.23187226]
[1752176861371,0.57178844,113210.0,113200.0,0.23187226]
[1752176861774,0.93258844,113210.0,113200.0,0.23187226]
[1752176863182,0.57178844,113210.0,113200.0,0.23187226]
[1752176863582,0.30629796,113210.0,113200.0,0.23187226]
[1752176863778,0.57114844,113210.0,113200.0,0.23187226]
[1752176863979,0.57178844,113210.0,113200.0,0.23187226]
[1752176864473,0.39523634,113210.0,113200.0,0.23187226]
[1752176865474,0.57178804,113210.0,113200.0,0.23187226]
[1752176867982,0.6190391,113210.0,113200.0,0.23187226]
[1752176868183,0.57178804,113210.0,113200.0,0.23187226]
[1752176869188,1.17822804,113210.0,113200.0,0.23187226]
[1752176869790,0.57178804,113210.0,113200.0,0.23187226]
[1752176869981,1.17810804,113210.0,113200.0,0.23187226]
[1752176871588,0.57178804,113210.0,113200.0,0.23187226]
[1752176871889,1.17794804,113210.0,113200.0,0.23187226]
[1752176872492,0.91245756,113210.0,113200.0,0.23187226]
[1752176872789,1.17794804,113210.0,113200.0,0.23187226]
[1752176877793,0.57178804,113210.0,113200.0,0.23187226]
[1752176878088,1.17782804,113210.0,113200.0,0.23187226]
[1752176878490,0.57178804,113210.0,113200.0,0.23187226]
[1752176878692,1.17782804,113210.0,113200.0,0.23187226]
[1752176881195,1.17782804,113210.0,113200.0,0.19346226]
[1752176882996,1.53862804,113210.0,113200.0,0.19346226]
[1752176883193,1.53862804,113210.0,113200.0,0.19344986]
[1752176883892,1.53862804,113210.0,113200.0,0.1766077]
[1752176887393,1.53858804,113210.0,113200.0,0.1766077]